fUSD/lending_fUSD_20250906
["ID","MTS","AMOUNT","RATE_DAILY","PERIOD"]
[383821929,1757133038466,-200.0,0.0003678,2]
[383821930,1757133038475,-259.66335185,0.00037,2]
[383821931,1757133038484,-3075.5246494,0.00037356,9]
[383821932,1757133038493,-500.0,0.000378,13]
[383821933,1757133038503,-700.0,0.000379,13]
[383821934,1757133038512,-1670.02287584,0.00038,120]
[383821935,1757133038521,-165.0,0.00038,120]
[383821936,1757133038531,-160.0,0.00038,120]
[383821937,1757133038540,-380.07372256,0.00038256,2]
[383821938,1757133038552,-1650.9605266,0.00038256,13]
[383821939,1757133038563,-151.64,0.00038346,2]
[383821940,1757133038574,-151.64,0.00038346,2]
[383821941,1757133038583,-151.64,0.00038346,2]
[383821942,1757133038592,-151.64,0.00038346,2]
[383821943,1757133038602,-151.64,0.00038346,2]
[383821944,1757133038613,-151.64,0.00038346,2]
[383821945,1757133038623,-151.64,0.00038346,2]
[383821946,1757133038633,-151.64,0.00038346,2]
[383821947,1757133038643,-151.64,0.00038346,2]
[383821948,1757133038654,-300.0,0.00038356,10]
[383821949,1757133038664,-1060118.78807953,0.00038356,30]
[383821950,1757133038673,-500.0,0.00038356,5]
[383821951,1757133038682,-420.57,0.000384,14]
[383821952,1757133038692,-1246.99,0.00038493,2]
[383821953,1757133038701,-500.0,0.00039305,7]
[383821954,1757133038711,-500.0,0.00039629,7]
[383821955,1757133038722,-1559.0,0.000397,120]
[383821956,1757133038732,-610.0,0.00039737,2]
[383821957,1757133038742,-1326.14,0.00040509,2]
[383821958,1757133038753,-90.44874852,0.00040547,14]
[383821959,1757133038762,-1000.0,0.00040568,2]
[383821960,1757133038772,-307.65206568,0.00040568,2]
[383821961,1757133038782,-175.16,0.00040757,2]
[383821962,1757133038792,-283.05435639,0.00040833,15]
[383821963,1757133038801,-636.91655497,0.00042085,5]
[383821964,1757133038811,-151.64,0.00042154,2]
[383821965,1757133038822,-500.0,0.00042159,2]
[383821966,1757133038832,-151.0,0.00042159,2]
[383821967,1757133038842,-151.0,0.00042159,2]
[383821968,1757133038851,-151.0,0.00042159,2]
[383821969,1757133038860,-175.57869948,0.00042159,2]
[383821970,1757133038869,-151.0,0.00042159,2]
[383821971,1757133038878,-151.0,0.00042159,2]
[383821972,1757133038887,-151.0,0.00042159,2]
[383821973,1757133038896,-151.0,0.00042159,2]
[383821974,1757133038905,-151.0,0.00042159,2]
[383821975,1757133038915,-151.0,0.00042159,2]
[383821976,1757133038925,-600.0,0.00042159,2]
[383821977,1757133038935,-151.0,0.00042159,2]
[383821978,1757133038944,-265.841198,0.00042159,2]
[383821979,1757133038954,-600.0,0.00042159,2]
[383821980,1757133038963,-600.0,0.00042159,2]
[383821981,1757133038972,-600.0,0.00042159,2]
[383821982,1757133038981,-544.24277941,0.00042159,2]
[383821983,1757133038990,-202.00565478,0.00042159,2]
[383821984,1757133038999,-500.0,0.00042159,2]
[383821985,1757133039008,-500.0,0.00042159,2]
[383821986,1757133039019,-500.0,0.00042159,2]
[383821987,1757133039031,-500.0,0.00042159,2]
[383821988,1757133039040,-500.0,0.00042159,2]
[383821989,1757133039050,-500.0,0.00042159,2]
[383821990,1757133039060,-500.0,0.00042159,2]
[383821991,1757133039069,-500.0,0.00042159,2]
[383821992,1757133039079,-500.0,0.00042159,2]
[383821993,1757133039088,-500.0,0.00042159,2]
[383821994,1757133039098,-500.0,0.00042159,2]
[383821995,1757133039108,-500.0,0.00042159,2]
[383821996,1757133039118,-500.0,0.00042159,2]
[383821997,1757133039127,-8754.0,0.00042164,120]
[383821998,1757133039136,-6711.0,0.00042164,120]
[383821999,1757133039146,-151.64,0.00042175,2]
[383822000,1757133039156,-300.0,0.00042184,30]
[383822001,1757133039166,-207.514,0.00042184,63]
[383822002,1757133039175,-97704.53199733,0.00042185,2]
[383822003,1757133039185,-500.0,0.00042214,2]
[383822004,1757133039194,-500.0,0.00042269,2]
[383822005,1757133039203,-500.0,0.00042324,2]
[383822006,1757133039213,-500.0,0.00042379,2]
[383822007,1757133039222,-500.0,0.00042757,10]
[383822008,1757133039232,-528.17421264,0.00042757,10]
[383822009,1757133039241,-160.0,0.000431,120]
[383822010,1757133039251,-330.34524909,0.00044136,28]
[383822011,1757133039260,-430.82057607,0.000444,33]
[383822012,1757133039270,-283.05435639,0.00045678,15]
[383822013,1757133039279,-2933.10293291,0.000459,2]
[383822014,1757133039289,-2414.69886968,0.0004599,120]
[383822015,1757133039298,-389.16,0.00046027,30]
[383822016,1757133039308,-448.86,0.00046028,30]
[383822017,1757133039317,-305.77,0.00046028,30]
[383822018,1757133039327,-352.88,0.00046028,30]
[383822019,1757133039336,-332.56,0.00046028,30]
[383822020,1757133039346,-150.0,0.00046028,30]
[383822021,1757133039359,-431.25,0.00046028,30]
[383822022,1757133039368,-150.0,0.00046028,30]
[383822023,1757133039377,-150.0,0.00046028,30]
[383822024,1757133039387,-425.72,0.00046028,30]
[383822025,1757133039398,-226.21,0.00046028,30]
[383822026,1757133039407,-1082.88,0.00046028,30]
[383822027,1757133039416,-802.0,0.00046028,30]
[383822028,1757133039426,-481.01,0.00046028,30]
[383822029,1757133039436,-165.9,0.00046028,30]
[383822030,1757133039446,-802.0,0.00046028,30]
[383822031,1757133039456,-200.0,0.00046603,2]
[383822032,1757133039465,-694.71,0.0004687,2]
[383822033,1757133039475,-420.57,0.000469,14]
[383822034,1757133039484,-166.65,0.00047054,120]
[383822035,1757133039494,-278.0,0.0004737,30]
[383822036,1757133039503,-514.85095374,0.00047466,2]
[383822037,1757133039512,-152.99,0.00047703,120]
[383822038,1757133039522,-903.73343409,0.0004788,100]
[383822039,1757133039531,-160.0,0.00048039,7]
[383822040,1757133039540,-160.0,0.000482,120]
[383822041,1757133039550,-249.59,0.00048582,2]
[383822042,1757133039559,-175.16,0.00048908,2]
[383822043,1757133039569,-2470.25,0.00049154,2]
[383822044,1757133039578,-9999.99,0.00049154,2]
[383822045,1757133039588,-9999.99,0.00049154,2]
[383822046,1757133039598,-9999.99,0.00049154,2]
[383822047,1757133039607,-1437.78,0.00049154,2]
[383822048,1757133039617,-500.0,0.00049276,30]
[383822049,1757133039626,-500.44338955,0.00049347,10]
[383822050,1757133039636,-151.64,0.00049542,120]
[383822051,1757133039645,-21241.03,0.00049551,2]
[383822052,1757133039655,-4277.18,0.000496,120]
[383822053,1757133039665,-196.5,0.00049764,60]
[383822054,1757133039675,-1000.0,0.000498,120]
[383822055,1757133039683,-2389.0,0.0005,30]
[383822056,1757133039693,-5000.0,0.0005,30]
[383822057,1757133039703,-5901.77,0.00050076,2]
[383822058,1757133039712,-368.79,0.00050079,2]
[383822059,1757133039722,-278.0,0.0005014,30]
[383822060,1757133039732,-150.0,0.0005035,120]
[383822061,1757133039741,-240.5570091,0.00050438,30]
[383822062,1757133039751,-283.05435639,0.00050522,15]
[383822063,1757133039760,-160.0,0.00051166,2]
[383822064,1757133039769,-501.49625987,0.0005132,8]
[383822065,1757133039779,-420.57,0.000514,60]
[383822066,1757133039788,-150.0,0.0005172,120]
[383822067,1757133039797,-524.88728886,0.0005186,10]
[383822068,1757133039807,-13338.63,0.00052301,2]
[383822069,1757133039816,-368.79,0.00052583,2]
[383822070,1757133039826,-278.0,0.000529,30]
[383822071,1757133039835,-500.0,0.00052985,60]
[383822072,1757133039845,-2898.5754479,0.00053,30]
[383822073,1757133039855,-160.0,0.000532,120]
[383822074,1757133039864,-170.99046622,0.00053297,120]
[383822075,1757133039874,-4026.92,0.000533,2]
[383822076,1757133039883,-151.64,0.00053481,120]
[383822077,1757133039892,-300.0,0.0005349,30]
[383822078,1757133039902,-91820.64934459,0.00053491,2]
[383822079,1757133039911,-330.34524909,0.00054254,28]
[383822080,1757133039921,-2050.0,0.0005499,10]
[383822081,1757133039930,-1000.0,0.00055,120]
[383822082,1757133039940,-368.79,0.00055087,2]
[383822083,1757133039950,-305.49541783,0.00055214,120]
[383822084,1757133039959,-283.05435639,0.00055367,15]
[383822085,1757133039968,-2172.03,0.00055392,2]
[383822086,1757133039978,-278.0,0.0005567,30]
[383822087,1757133039988,-150.0,0.00055714,120]
[383822088,1757133039997,-150.0,0.00055715,120]
[383822089,1757133040006,-724.82512676,0.0005587,120]
[383822090,1757133040016,-5865.59544694,0.00056733,2]
[383822091,1757133040025,-166.65,0.00056835,120]
[383822092,1757133040035,-175.16,0.0005706,2]
[383822093,1757133040045,-420.57,0.000571,60]
[383822094,1757133040055,-500.0,0.0005728,120]
[383822095,1757133040064,-368.79,0.0005759,2]
[383822096,1757133040074,-705.0,0.000577,120]
[383822097,1757133040084,-160.0,0.000583,120]
[383822098,1757133040093,-278.0,0.0005843,30]
[383822099,1757133040103,-900.0,0.000589,30]
[383822100,1757133040113,-535.08911572,0.000589,30]
[383822101,1757133040122,-207.515,0.00059138,117]
[383822102,1757133040133,-251.0,0.00059205,2]
[383822103,1757133040144,-5000.0,0.0006,120]
[383822104,1757133040154,-368.79,0.00060094,2]
[383822105,1757133040163,-283.05435639,0.00060211,15]
[383822106,1757133040173,-500.0,0.00060273,15]
[383822107,1757133040183,-151.64,0.00060288,120]
[383822108,1757133040192,-308.18501051,0.00060297,30]
[383822109,1757133040201,-77781.75690057,0.00060298,2]
[383822110,1757133040211,-151.0,0.00060298,120]
[383822111,1757133040221,-152.980544,0.00060298,120]
[383822112,1757133040231,-448.448159,0.00060298,120]
[383822113,1757133040240,-448.448159,0.00060298,120]
[383822114,1757133040250,-448.448159,0.00060298,120]
[383822115,1757133040259,-448.448159,0.00060298,120]
[383822116,1757133040269,-151.0,0.00060298,120]
[383822117,1757133040279,-151.0,0.00060298,120]
[383822118,1757133040288,-4758.255128,0.00060298,30]
[383822119,1757133040298,-151.0,0.00060298,120]
[383822120,1757133040307,-248.559,0.00060298,120]
[383822121,1757133040317,-4758.255128,0.00060298,30]
[383822122,1757133040326,-151.307591,0.00060298,120]
[383822123,1757133040336,-4758.255128,0.00060298,30]
[383822124,1757133040346,-151.0,0.00060298,120]
[383822125,1757133040359,-4758.255128,0.00060298,30]
[383822126,1757133040369,-218.043565,0.00060298,120]
[383822127,1757133040378,-153.733214,0.00060298,120]
[383822128,1757133040388,-151.0,0.00060298,120]
[383822129,1757133040398,-151.0,0.00060298,120]
[383822130,1757133040407,-151.0,0.00060298,120]
[383822131,1757133040416,-151.0,0.00060298,120]
[383822132,1757133040426,-151.0,0.00060298,120]
[383822133,1757133040436,-207.598229,0.00060298,120]
[383822134,1757133040446,-207.598229,0.00060298,120]
[383822135,1757133040456,-151.0,0.00060298,120]
[383822136,1757133040465,-207.598229,0.00060298,120]
[383822137,1757133040476,-207.598229,0.00060298,120]
[383822138,1757133040486,-151.0,0.00060298,120]
[383822139,1757133040495,-151.0,0.00060298,120]
[383822140,1757133040504,-151.0,0.00060298,120]
[383822141,1757133040514,-151.0,0.00060298,120]
[383822142,1757133040523,-151.0,0.00060298,120]
[383822143,1757133040533,-151.0,0.00060298,120]
[383822144,1757133040543,-167.654445,0.00060298,120]
[383822145,1757133040552,-151.0,0.00060298,120]
[383822146,1757133040562,-153.997555,0.00060298,120]
[383822147,1757133040571,-151.0,0.00060298,120]
[383822148,1757133040582,-5047.01,0.000603,30]
[383822149,1757133040592,-1623.02,0.000603,30]
[383822151,1757133040602,-249.52,0.00060582,14]
[383822153,1757133040612,-1001.53246808,0.00060821,15]
[383822154,1757133040622,-5000.0,0.00061,120]
[383822155,1757133040634,-278.0,0.000612,30]
[383822156,1757133040643,-329.97,0.00061396,14]
[383822157,1757133040654,-163.62,0.00061396,14]
[383822158,1757133040664,-151.64,0.00061463,120]
[383822159,1757133040674,-4000.0,0.00061473,30]
[383822160,1757133040684,-1000.0,0.000619,22]
[383822161,1757133040694,-13276.53,0.00061976,2]
[383822162,1757133040704,-5000.0,0.00062,120]
[383822163,1757133040715,-151.64,0.00062411,120]
[383822164,1757133040724,-257.91778498,0.00062971,2]
[383822165,1757133040734,-3000.0,0.00062971,2]
[383822166,1757133040743,-30000.0,0.0006299,60]
[383822167,1757133040754,-1243.0,0.00063,90]
[383822168,1757133040764,-290.58595349,0.00063,120]
[383822169,1757133040774,-5000.0,0.00063,120]
[383822170,1757133040920,-160.0,0.000634,120]
[383822171,1757133040930,-556.99304275,0.00063476,30]
[383822172,1757133040939,-650.25813316,0.000635,120]
[383822173,1757133040949,-278.0,0.0006396,30]
[383822174,1757133040959,-5000.0,0.00064,120]
[383822175,1757133040968,-151.64,0.00064015,120]
[383822176,1757133040978,-25000.0,0.00064025,30]
[383822177,1757133040987,-5000.0,0.00064044,30]
[383822178,1757133040998,-150.0,0.00064045,120]
[383822179,1757133041007,-325.62,0.00064054,30]
[383822180,1757133041018,-150.0,0.00064063,120]
[383822181,1757133041027,-5000.0,0.00064067,30]
[383822182,1757133041037,-5000.0,0.00064102,30]
[383822183,1757133041046,-5000.0,0.00064104,30]
[383822184,1757133041056,-1969.35,0.00064128,30]
[383822185,1757133041066,-25000.0,0.00064166,30]
[383822186,1757133041075,-2476.33,0.00064267,30]
[383822187,1757133041085,-5000.0,0.00064324,30]
[383822188,1757133041094,-5000.0,0.00064331,30]
[383822189,1757133041104,-267.46074303,0.0006434,2]
[383822190,1757133041114,-3128.39592043,0.0006434,2]
[383822191,1757133041124,-2938.42,0.00064355,30]
[383822192,1757133041133,-5000.0,0.0006436,30]
[383822193,1757133041143,-330.34524909,0.00064371,28]
[383822194,1757133041152,-276.03,0.00064374,30]
[383822195,1757133041162,-900.0,0.000644,30]
[383822196,1757133041172,-420.57,0.000644,60]
[383822197,1757133041181,-1037.59,0.00064421,30]
[383822198,1757133041191,-5000.0,0.00064424,30]
[383822199,1757133041201,-2127.51,0.0006444,30]
[383822200,1757133041211,-151.64,0.00064474,120]
[383822201,1757133041221,-5000.0,0.00064484,30]
[383822202,1757133041231,-5000.0,0.00064593,30]
[383822203,1757133041240,-818.12,0.00064608,30]
[383822204,1757133041250,-822.56,0.00064632,30]
[383822205,1757133041259,-5000.0,0.00064642,30]
[383822206,1757133041268,-1846.64,0.00064661,30]
[383822207,1757133041278,-2469.73,0.00064678,30]
[383822208,1757133041287,-18052.08,0.00064716,30]
[383822209,1757133041297,-5000.0,0.0006473,30]
[383822210,1757133041306,-5000.0,0.00064754,30]
[383822211,1757133041316,-5000.0,0.00064776,30]
[383822212,1757133041325,-25000.0,0.00064781,30]
[383822213,1757133041335,-5000.0,0.00064804,30]
[383822214,1757133041344,-150.0,0.00064852,30]
[383822215,1757133041359,-5000.0,0.00064884,30]
[383822216,1757133041368,-2221.4,0.00064898,30]
[383822217,1757133041378,-5000.0,0.00064973,30]
[383822218,1757133041389,-151.64,0.0006498,120]
[383822219,1757133041398,-2513.79,0.0006499,30]
[383822220,1757133041408,-5000.0,0.00065,120]
[383822221,1757133041418,-283.05435639,0.00065056,15]
[383822222,1757133041427,-250.0,0.00065199,120]
[383822223,1757133041438,-175.16,0.00065211,2]
[383822224,1757133041448,-731.79,0.00065249,120]
[383822225,1757133041458,-1623.02,0.000653,30]
[383822226,1757133041468,-694.71,0.00065619,30]
[383822227,1757133041477,-151.0,0.00065619,120]
[383822228,1757133041487,-151.0,0.00065619,120]
[383822229,1757133041497,-151.0,0.00065619,120]
[383822230,1757133041506,-151.0,0.00065619,120]
[383822231,1757133041515,-151.0,0.00065619,120]
[383822232,1757133041524,-151.0,0.00065619,120]
[383822233,1757133041533,-151.0,0.00065619,120]
[383822234,1757133041544,-151.0,0.00065619,120]
[383822235,1757133041553,-174.737886,0.00065619,120]
[383822236,1757133041563,-5047.01,0.000657,30]
[383822237,1757133041573,-277.35679052,0.00065709,2]
[383822238,1757133041583,-220.83,0.00065753,2]
[383822239,1757133041592,-150.0,0.00065785,120]
[383822240,1757133041602,-5000.0,0.00066,120]
[383822241,1757133041611,-526.42989755,0.00066,120]
[383822242,1757133041621,-168.0,0.00066314,2]
[383822243,1757133041630,-166.65,0.00066616,120]
[383822244,1757133041639,-1243.70237931,0.000667,120]
[383822245,1757133041648,-278.0,0.0006672,30]
[383822246,1757133041658,-5000.0,0.00067,120]
[383822247,1757133041667,-287.61899177,0.00067078,2]
[383822248,1757133041677,-168.97,0.00067168,2]
[383822249,1757133041686,-248.0,0.0006754,30]
[383822250,1757133041695,-151.33219181,0.00067899,120]
[383822251,1757133041704,-151.61319408,0.00067899,120]
[383822252,1757133041714,-150.33367559,0.00067899,120]
[383822253,1757133041723,-150.0,0.00067899,120]
[383822254,1757133041732,-150.0,0.00067899,120]
[383822255,1757133041742,-151.72168602,0.00067899,120]
[383822256,1757133041751,-150.0,0.00067899,120]
[383822257,1757133041760,-153.12660046,0.00067899,120]
[383822258,1757133041770,-150.0,0.00067899,120]
[383822259,1757133041779,-150.0,0.00067899,120]
[383822260,1757133041788,-500.0,0.000679,2]
[383822261,1757133041798,-212.16195066,0.00068,120]
[383822262,1757133041807,-5000.0,0.00068,120]
[383822263,1757133041816,-2874.18751802,0.00068,120]
[383822264,1757133041825,-150.0387837,0.00068,120]
[383822265,1757133041836,-500.0,0.00068009,120]
[383822266,1757133041845,-500.0,0.00068009,120]
[383822267,1757133041855,-492.0,0.00068009,120]
[383822268,1757133041864,-386.14770535,0.00068393,2]
[383822269,1757133041874,-298.26089446,0.00068447,2]
[383822270,1757133041883,-151.64,0.00068483,120]
[383822271,1757133041894,-288.54921028,0.00068492,120]
[383822272,1757133041904,-291.41837167,0.00068493,120]
[383822273,1757133041914,-354.78007894,0.00068493,120]
[383822274,1757133041923,-400.0,0.00068493,120]
[383822275,1757133041932,-400.0,0.00068493,120]
[383822276,1757133041942,-400.0,0.00068493,120]
[383822277,1757133041951,-400.0,0.00068493,120]
[383822278,1757133041961,-400.0,0.00068493,120]
[383822279,1757133041970,-400.0,0.00068493,120]
[383822280,1757133041979,-400.0,0.00068493,120]
[383822281,1757133041988,-400.0,0.00068493,120]
[383822282,1757133041998,-400.0,0.00068493,120]
[383822283,1757133042007,-400.0,0.00068493,120]
[383822284,1757133042017,-400.0,0.00068493,120]
[383822285,1757133042026,-400.0,0.00068493,120]
[383822286,1757133042035,-400.0,0.00068493,120]
[383822287,1757133042045,-185.37494406,0.00068493,120]
[383822288,1757133042054,-400.0,0.00068493,120]
[383822289,1757133042064,-400.0,0.00068493,120]
[383822290,1757133042073,-400.0,0.00068493,120]
[383822291,1757133042083,-400.0,0.00068493,120]
[383822292,1757133042092,-400.0,0.00068493,120]
[383822293,1757133042102,-400.0,0.00068493,120]
[383822294,1757133042112,-400.0,0.00068493,120]
[383822295,1757133042121,-400.0,0.00068493,120]
[383822296,1757133042130,-400.0,0.00068493,120]
[383822297,1757133042140,-400.0,0.00068493,120]
[383822298,1757133042149,-400.0,0.00068493,120]
[383822299,1757133042158,-218.67,0.00068493,120]
[383822300,1757133042167,-500.0,0.00068493,2]
[383822301,1757133042177,-330.64,0.00068493,120]
[383822302,1757133042186,-312.9050629,0.00068493,120]
[383822303,1757133042196,-400.0,0.00068493,120]
[383822304,1757133042205,-400.0,0.00068493,120]
[383822305,1757133042215,-400.0,0.00068493,120]
[383822306,1757133042224,-400.0,0.00068493,120]
[383822307,1757133042233,-400.0,0.00068493,120]
[383822308,1757133042243,-400.0,0.00068493,120]
[383822309,1757133042252,-400.0,0.00068493,120]
[383822310,1757133042262,-400.0,0.00068493,120]
[383822311,1757133042271,-400.0,0.00068493,120]
[383822312,1757133042280,-404.67,0.00068493,120]
[383822313,1757133042290,-400.0,0.00068493,120]
[383822314,1757133042300,-400.0,0.00068493,120]
[383822315,1757133042310,-400.0,0.00068493,120]
[383822316,1757133042319,-887.4006009,0.00068493,120]
[383822317,1757133042329,-300.0,0.00068493,120]
[383822318,1757133042339,-400.0,0.00068493,120]
[383822319,1757133042351,-406.42,0.00068493,120]
[383822320,1757133042361,-400.0,0.00068493,120]
[383822321,1757133042371,-400.0,0.00068493,120]
[383822322,1757133042381,-400.0,0.00068493,120]
[383822323,1757133042390,-400.0,0.00068493,120]
[383822324,1757133042400,-400.0,0.00068493,120]
[383822325,1757133042409,-400.0,0.00068493,120]
[383822326,1757133042419,-360.0,0.00068493,120]
[383822327,1757133042428,-400.0,0.00068493,120]
[383822328,1757133042439,-400.0,0.00068493,120]
[383822329,1757133042448,-400.0,0.00068493,120]
[383822330,1757133042458,-400.0,0.00068493,120]
[383822331,1757133042467,-400.0,0.00068493,120]
[383822332,1757133042477,-520.47624505,0.00068493,120]
[383822333,1757133042487,-400.0,0.00068493,120]
[383822335,1757133042496,-400.0,0.00068493,120]
[383822336,1757133042506,-400.0,0.00068493,30]
[383822337,1757133042515,-400.0,0.00068493,120]
[383822338,1757133042524,-400.0,0.00068493,120]
[383822339,1757133042534,-346.28099429,0.00068493,120]
[383822340,1757133042543,-400.0,0.00068493,120]
[383822341,1757133042552,-505.34354606,0.00068493,120]
[383822342,1757133042562,-400.0,0.00068493,120]
[383822343,1757133042571,-400.0,0.00068493,120]
[383822345,1757133042580,-400.0,0.00068493,120]
[383822346,1757133042591,-400.0,0.00068493,120]
[383822347,1757133042600,-400.0,0.00068493,120]
[383822349,1757133042609,-400.0,0.00068493,120]
[383822350,1757133042619,-400.0,0.00068493,120]
[383822351,1757133042628,-475.54,0.00068493,120]
[383822352,1757133042637,-400.0,0.00068493,120]
[383822353,1757133042647,-590.22,0.00068493,120]
[383822354,1757133042656,-590.22,0.00068493,120]
[383822355,1757133042665,-400.0,0.00068493,120]
[383822356,1757133042675,-484.68026545,0.00068493,120]
[383822357,1757133042684,-400.0,0.00068493,120]
[383822358,1757133042693,-400.0,0.00068493,120]
[383822359,1757133042703,-400.0,0.00068493,120]
[383822360,1757133042712,-400.0,0.00068493,120]
[383822361,1757133042722,-325.87869489,0.00068493,120]
[383822362,1757133042731,-400.0,0.00068493,120]
[383822363,1757133042740,-421.25283999,0.00068493,120]
[383822364,1757133042750,-400.0,0.00068493,120]
[383822365,1757133042760,-400.0,0.00068493,120]
[383822366,1757133042770,-400.0,0.00068493,120]
[383822367,1757133042779,-400.0,0.00068493,120]
[383822368,1757133042789,-400.0,0.00068493,120]
[383822369,1757133042799,-3100.64,0.00068493,120]
[383822371,1757133042808,-400.0,0.00068493,120]
[383822373,1757133042817,-3100.64,0.00068493,120]
[383822375,1757133042827,-400.0,0.00068493,120]
[383822377,1757133042838,-400.0,0.00068493,120]
[383822379,1757133042848,-400.0,0.00068493,120]
[383822380,1757133042858,-400.0,0.00068493,120]
[383822381,1757133042867,-400.0,0.00068493,120]
[383822382,1757133042879,-400.0,0.00068493,120]
[383822383,1757133042889,-400.0,0.00068493,120]
[383822384,1757133042899,-400.0,0.00068493,120]
[383822385,1757133042909,-400.0,0.00068493,120]
[383822386,1757133042919,-380.0,0.00068493,120]
[383822387,1757133042928,-400.0,0.00068493,120]
[383822388,1757133042938,-400.0,0.00068493,120]
[383822389,1757133042947,-400.0,0.00068493,120]
[383822390,1757133042957,-400.0,0.00068493,120]
[383822391,1757133042967,-400.0,0.00068493,120]
[383822392,1757133042976,-400.0,0.00068493,120]
[383822393,1757133042985,-400.0,0.00068493,120]
[383822394,1757133042994,-400.0,0.00068493,120]
[383822395,1757133043003,-452.0,0.00068493,120]
[383822396,1757133043013,-400.0,0.00068493,120]
[383822397,1757133043022,-400.0,0.00068493,120]
[383822398,1757133043032,-400.0,0.00068493,120]
[383822399,1757133043041,-400.0,0.00068493,120]
[383822400,1757133043050,-155.37470583,0.00068493,120]
[383822401,1757133043060,-400.0,0.00068493,120]
[383822402,1757133043076,-400.0,0.00068493,120]
[383822403,1757133043088,-400.0,0.00068493,120]
[383822404,1757133043098,-400.0,0.00068493,120]
[383822405,1757133043108,-400.0,0.00068493,120]
[383822406,1757133043117,-400.0,0.00068493,120]
[383822407,1757133043127,-502.63,0.00068493,120]
[383822408,1757133043137,-400.0,0.00068493,120]
[383822409,1757133043146,-400.0,0.00068493,120]
[383822410,1757133043155,-400.0,0.00068493,120]
[383822411,1757133043165,-400.0,0.00068493,120]
[383822412,1757133043175,-400.0,0.00068493,120]
[383822413,1757133043184,-400.0,0.00068493,120]
[383822414,1757133043194,-400.0,0.00068493,120]
[383822415,1757133043203,-400.0,0.00068493,120]
[383822416,1757133043213,-506.88950295,0.00068493,120]
[383822417,1757133043223,-400.0,0.00068493,120]
[383822418,1757133043232,-400.0,0.00068493,120]
[383822419,1757133043243,-400.0,0.00068493,120]
[383822420,1757133043253,-400.0,0.00068493,120]
[383822421,1757133043262,-400.0,0.00068493,120]
[383822422,1757133043271,-400.0,0.00068493,120]
[383822423,1757133043281,-400.0,0.00068493,120]
[383822424,1757133043291,-400.0,0.00068493,120]
[383822425,1757133043300,-400.0,0.00068493,120]
[383822426,1757133043310,-462.16,0.00068493,120]
[383822427,1757133043319,-402.34150443,0.00068493,120]
[383822428,1757133043330,-400.0,0.00068493,120]
[383822429,1757133043341,-400.0,0.00068493,120]
[383822430,1757133043353,-400.0,0.00068493,120]
[383822431,1757133043363,-400.0,0.00068493,120]
[383822432,1757133043373,-510.01259809,0.00068493,120]
[383822433,1757133043382,-400.0,0.00068493,120]
[383822434,1757133043392,-400.0,0.00068493,120]
[383822435,1757133043401,-400.0,0.00068493,120]
[383822436,1757133043411,-400.0,0.00068493,120]
[383822437,1757133043419,-400.0,0.00068493,120]
[383822438,1757133043429,-400.0,0.00068493,120]